[Event "Live Chess"]
[Site "Chess.com"]
[Date "2023.05.20"]
[Round "-"]
[White "omisoc"]
[Black "xx_blindpuffin_xx"]
[Result "1-0"]
[WhiteElo "2190"]
[BlackElo "2202"]
[TimeControl "300"]
[EndTime "11:53:08 PDT"]
[Termination "omisoc won by resignation"]

1. b3 {[%clk 0:04:53.2]} 1... d5 {[%clk 0:04:56.9]} 2. Bb2 {[%clk 0:04:52.8]}
2... Nf6 {[%clk 0:04:56.1]} 3. e3 {[%clk 0:04:51.9]} 3... Bf5 {[%clk 0:04:55.6]}
4. Nf3 {[%clk 0:04:49.7]} 4... e6 {[%clk 0:04:54.7]} 5. g3 {[%clk 0:04:47.4]}
5... Be7 {[%clk 0:04:53.1]} 6. Bg2 {[%clk 0:04:47.1]} 6... O-O {[%clk
0:04:52.1]} 7. O-O {[%clk 0:04:46.1]} 7... h6 {[%clk 0:04:51.3]} 8. d3 {[%clk
0:04:45.2]} 8... c5 {[%clk 0:04:49.6]} 9. Nbd2 {[%clk 0:04:42.5]} 9... Nc6
{[%clk 0:04:48.2]} 10. Qe2 {[%clk 0:04:40.8]} 10... Bh7 {[%clk 0:04:42.2]} 11.
Rfe1 {[%clk 0:04:35.4]} 11... Qc7 {[%clk 0:04:26.4]} 12. a3 {[%clk 0:04:30.3]}
12... e5 {[%clk 0:04:16.9]} 13. e4 {[%clk 0:04:27.9]} 13... d4 {[%clk
0:04:10.2]} 14. a4 {[%clk 0:04:23.8]} 14... a6 {[%clk 0:04:08.6]} 15. Bh3 {[%clk
0:04:16.7]} 15... b5 {[%clk 0:04:06.5]} 16. Nh4 {[%clk 0:04:15.1]} 16... Ne8
{[%clk 0:03:46.5]} 17. Nf5 {[%clk 0:04:06.7]} 17... Nd6 {[%clk 0:03:33.5]} 18.
Nf3 {[%clk 0:03:59.1]} 18... Nxf5 {[%clk 0:03:23.3]} 19. Bxf5 {[%clk 0:03:56.9]}
19... Bxf5 {[%clk 0:03:22.1]} 20. exf5 {[%clk 0:03:56]} 20... Bd6 {[%clk
0:03:14.7]} 21. Qe4 {[%clk 0:03:54.3]} 21... f6 {[%clk 0:03:01.1]} 22. Ba3
{[%clk 0:03:46.2]} 22... Ne7 {[%clk 0:02:47.2]} 23. Nd2 {[%clk 0:03:32.6]} 23...
Rfb8 {[%clk 0:02:15.6]} 24. Bb2 {[%clk 0:03:27.5]} 24... Qc6 {[%clk 0:02:06.6]}
25. g4 {[%clk 0:03:19]} 25... Qxe4 {[%clk 0:01:49.3]} 26. Nxe4 {[%clk
0:03:14.4]} 26... Nc8 {[%clk 0:01:48.6]} 27. Ba3 {[%clk 0:03:10.1]} 27... b4
{[%clk 0:01:44.8]} 28. Bc1 {[%clk 0:03:06.3]} 28... Bf8 {[%clk 0:01:43.9]} 29.
f4 {[%clk 0:03:00.9]} 29... exf4 {[%clk 0:01:41.4]} 30. Bxf4 {[%clk 0:03:00.2]}
30... Rb7 {[%clk 0:01:37]} 31. Re2 {[%clk 0:02:51.3]} 31... Nb6 {[%clk 0:01:34]}
32. Rae1 {[%clk 0:02:36.6]} 32... Nd5 {[%clk 0:01:32.8]} 33. Bd2 {[%clk
0:02:31.5]} 33... Kf7 {[%clk 0:01:28.8]} 34. Kg2 {[%clk 0:02:28]} 34... Rd8
{[%clk 0:01:19.2]} 35. Kf3 {[%clk 0:02:26.6]} 35... Bd6 {[%clk 0:01:17.7]} 36.
h4 {[%clk 0:02:23.1]} 36... Be5 {[%clk 0:01:16.8]} 37. g5 {[%clk 0:02:19.3]}
37... hxg5 {[%clk 0:01:13.2]} 38. hxg5 {[%clk 0:02:16.5]} 38... Rh8 {[%clk
0:01:12.3]} 39. g6+ {[%clk 0:02:10.2]} 39... Ke7 {[%clk 0:01:06.4]} 40. Nxc5
{[%clk 0:02:08.8]} 40... Rc7 {[%clk 0:01:05.6]} 41. Nxa6 {[%clk 0:01:50.6]}
41... Rxc2 {[%clk 0:01:02.6]} 42. Nxb4 {[%clk 0:01:49.5]} 42... Rh3+ {[%clk
0:00:59.2]} 43. Ke4 {[%clk 0:01:43.3]} 43... Nc3+ {[%clk 0:00:19.4]} 44. Bxc3
{[%clk 0:01:40.2]} 44... Rxe2+ {[%clk 0:00:17.5]} 45. Rxe2 {[%clk 0:01:38]}
45... dxc3 {[%clk 0:00:17.4]} 46. d4 {[%clk 0:01:34.4]} 46... Rh4+ {[%clk
0:00:16.6]} 47. Kf3 {[%clk 0:01:27.7]} 47... Rf4+ {[%clk 0:00:15.8]} 48. Kg2
{[%clk 0:01:26.4]} 48... Rg4+ {[%clk 0:00:15.1]} 49. Kf1 {[%clk 0:01:22.6]}
49... Rxd4 {[%clk 0:00:12.7]} 50. Nc6+ {[%clk 0:01:21]} 50... Kd6 {[%clk
0:00:11.7]} 51. Nxd4 {[%clk 0:01:20.4]} 51... Bxd4 {[%clk 0:00:11.2]} 52. Ke1
{[%clk 0:01:16.9]} 52... Kc5 {[%clk 0:00:10.8]} 53. Kd1 {[%clk 0:01:16.2]} 53...
Kb4 {[%clk 0:00:10.4]} 54. Kc2 {[%clk 0:01:15.9]} 54... Be5 {[%clk 0:00:09.9]}
55. Rxe5 {[%clk 0:01:14.3]} 55... fxe5 {[%clk 0:00:09.8]} 56. f6 {[%clk
0:01:13.7]} 1-0

[Event "Live Chess"]
[Site "Chess.com"]
[Date "2023.05.20"]
[Round "-"]
[White "domrobson"]
[Black "diana21strabt"]
[Result "1-0"]
[WhiteElo "1753"]
[BlackElo "1688"]
[TimeControl "300"]
[EndTime "11:53:11 PDT"]
[Termination "domrobson won by checkmate"]

1. d4 {[%clk 0:04:57.5]} 1... Nf6 {[%clk 0:04:58.6]} 2. c4 {[%clk 0:04:54.7]}
2... g6 {[%clk 0:04:57.8]} 3. Nc3 {[%clk 0:04:54.3]} 3... Bg7 {[%clk 0:04:57.1]}
4. e4 {[%clk 0:04:53.9]} 4... d6 {[%clk 0:04:55.5]} 5. Be2 {[%clk 0:04:53.4]}
5... Nbd7 {[%clk 0:04:51.3]} 6. Nf3 {[%clk 0:04:51.8]} 6... O-O {[%clk
0:04:43.6]} 7. O-O {[%clk 0:04:51.4]} 7... e5 {[%clk 0:04:41.9]} 8. d5 {[%clk
0:04:50.2]} 8... Nc5 {[%clk 0:04:40.4]} 9. Qc2 {[%clk 0:04:47.7]} 9... a5 {[%clk
0:04:38.5]} 10. b3 {[%clk 0:04:43.5]} 10... Bd7 {[%clk 0:04:32.6]} 11. Ne1
{[%clk 0:04:35.7]} 11... h5 {[%clk 0:04:07.6]} 12. f3 {[%clk 0:04:28.4]} 12...
Nh7 {[%clk 0:04:04.3]} 13. Be3 {[%clk 0:04:12.6]} 13... b6 {[%clk 0:03:56.7]}
14. Rb1 {[%clk 0:04:07.4]} 14... f5 {[%clk 0:03:52.8]} 15. Bf2 {[%clk 0:04:06]}
15... fxe4 {[%clk 0:03:51.1]} 16. fxe4 {[%clk 0:04:04.9]} 16... Ng5 {[%clk
0:03:43.4]} 17. Bh4 {[%clk 0:03:57.6]} 17... Rxf1+ {[%clk 0:03:37.6]} 18. Bxf1
{[%clk 0:03:56]} 18... Bf6 {[%clk 0:03:30.6]} 19. a3 {[%clk 0:03:39.3]} 19...
Ngxe4 {[%clk 0:03:05.7]} 20. Nxe4 {[%clk 0:03:28.8]} 20... Bxh4 {[%clk 0:03:03]}
21. Nxc5 {[%clk 0:03:27.1]} 21... bxc5 {[%clk 0:03:01.3]} 22. Qxg6+ {[%clk
0:03:26.3]} 22... Kf8 {[%clk 0:02:56.7]} 23. Qh6+ {[%clk 0:03:21.9]} 23... Kg8
{[%clk 0:02:53.6]} 24. Bd3 {[%clk 0:03:13]} 24... Qf6 {[%clk 0:02:33.6]} 25.
Qh7+ {[%clk 0:03:04.7]} 25... Kf8 {[%clk 0:02:30.8]} 26. Nf3 {[%clk 0:03:01.5]}
26... Re8 {[%clk 0:02:01.7]} 27. Nxh4 {[%clk 0:02:55.9]} 27... Qxh4 {[%clk
0:02:00.1]} 28. Qxd7 {[%clk 0:02:53.7]} 28... Qd4+ {[%clk 0:01:56.4]} 29. Kh1
{[%clk 0:02:42.1]} 29... Qxd3 {[%clk 0:01:55.1]} 30. Rg1 {[%clk 0:02:27.1]}
30... e4 {[%clk 0:01:36.5]} 31. Qxc7 {[%clk 0:02:25.8]} 31... Qxb3 {[%clk
0:01:29.7]} 32. Qxd6+ {[%clk 0:02:24.9]} 32... Kg7 {[%clk 0:01:27.3]} 33. Rf1
{[%clk 0:02:20.8]} 33... Qxc4 {[%clk 0:01:21.3]} 34. Qf6+ {[%clk 0:02:17.6]}
34... Kh7 {[%clk 0:01:19.1]} 35. Qf7+ {[%clk 0:02:15]} 35... Kh6 {[%clk
0:01:17.5]} 36. Rf6+ {[%clk 0:02:13.2]} 36... Kg5 {[%clk 0:01:16.5]} 37. Qg6+
{[%clk 0:02:11.3]} 37... Kh4 {[%clk 0:01:15.4]} 38. Qg3# {[%clk 0:02:10.9]} 1-0

[Event "Live Chess"]
[Site "Chess.com"]
[Date "2023.05.20"]
[Round "-"]
[White "Driftboard"]
[Black "VovaOvchar1990"]
[Result "0-1"]
[WhiteElo "717"]
[BlackElo "1215"]
[TimeControl "300"]
[EndTime "11:53:20 PDT"]
[Termination "VovaOvchar1990 won by resignation"]

1. e4 {[%clk 0:04:59.4]} 1... e5 {[%clk 0:04:57.6]} 2. Nf3 {[%clk 0:04:58.1]}
2... Nc6 {[%clk 0:04:55.9]} 3. Nc3 {[%clk 0:04:55.3]} 3... Nf6 {[%clk
0:04:54.3]} 4. Bb5 {[%clk 0:04:53.5]} 4... a6 {[%clk 0:04:52.1]} 5. Bxc6 {[%clk
0:04:51.9]} 5... dxc6 {[%clk 0:04:50.5]} 6. O-O {[%clk 0:04:49.8]} 6... Bd6
{[%clk 0:04:47.9]} 7. d3 {[%clk 0:04:48.5]} 7... O-O {[%clk 0:04:45.9]} 8. Bg5
{[%clk 0:04:47.6]} 8... h6 {[%clk 0:04:44.1]} 9. Bxf6 {[%clk 0:04:42.5]} 9...
Qxf6 {[%clk 0:04:42.3]} 10. h3 {[%clk 0:04:26.5]} 10... Qg6 {[%clk 0:04:40.4]}
11. Nh4 {[%clk 0:04:22.6]} 11... Qg5 {[%clk 0:04:38.2]} 12. Nf3 {[%clk
0:04:11.1]} 12... Qg6 {[%clk 0:04:35.6]} 13. Nh4 {[%clk 0:04:07]} 13... Qf6
{[%clk 0:04:34]} 14. Nf3 {[%clk 0:04:02.4]} 14... Be7 {[%clk 0:04:32.6]} 15. d4
{[%clk 0:03:58]} 15... exd4 {[%clk 0:04:30.3]} 16. Nxd4 {[%clk 0:03:56.6]} 16...
Qg6 {[%clk 0:04:27.5]} 17. Nf5 {[%clk 0:03:54.3]} 17... Bxf5 {[%clk 0:04:15.9]}
18. exf5 {[%clk 0:03:52.4]} 18... Qxf5 {[%clk 0:04:14.7]} 19. Rc1 {[%clk
0:03:45.5]} 19... Bc5 {[%clk 0:04:08]} 20. Qe2 {[%clk 0:03:37.9]} 20... Rfe8
{[%clk 0:04:05]} 21. Qc4 {[%clk 0:03:22.1]} 21... Rad8 {[%clk 0:03:56.5]} 22.
Qxc5 {[%clk 0:03:15.1]} 22... Qxc5 {[%clk 0:03:53.2]} 23. a3 {[%clk 0:03:01.4]}
23... Rd2 {[%clk 0:03:50.3]} 24. Kh2 {[%clk 0:02:49.1]} 24... b5 {[%clk
0:03:46.4]} 25. Rfe1 {[%clk 0:02:44.6]} 25... Rxe1 {[%clk 0:03:42.4]} 26. Rxe1
{[%clk 0:02:43.2]} 26... Rxc2 {[%clk 0:03:41.7]} 27. Ne4 {[%clk 0:02:41.4]}
27... Qe5+ {[%clk 0:03:34.9]} 28. Ng3 {[%clk 0:02:33.4]} 0-1

[Event "Live Chess"]
[Site "Chess.com"]
[Date "2023.05.20"]
[Round "-"]
[White "CocheseUK"]
[Black "seabuck"]
[Result "0-1"]
[WhiteElo "1061"]
[BlackElo "1857"]
[TimeControl "300"]
[EndTime "11:53:21 PDT"]
[Termination "seabuck won by resignation"]

1. e4 {[%clk 0:04:57.2]} 1... c6 {[%clk 0:04:58.4]} 2. d4 {[%clk 0:04:54.2]}
2... d5 {[%clk 0:04:57.3]} 3. Nc3 {[%clk 0:04:50.9]} 3... dxe4 {[%clk
0:04:56.2]} 4. Nxe4 {[%clk 0:04:49.5]} 4... Nf6 {[%clk 0:04:55.2]} 5. Nxf6+
{[%clk 0:04:46.6]} 5... gxf6 {[%clk 0:04:54.2]} 6. Be3 {[%clk 0:04:44.1]} 6...
Bf5 {[%clk 0:04:52.3]} 7. Bd3 {[%clk 0:04:42.4]} 7... Bxd3 {[%clk 0:04:50.3]} 8.
Qxd3 {[%clk 0:04:41.3]} 8... e6 {[%clk 0:04:44.6]} 9. Nf3 {[%clk 0:04:38.3]}
9... Be7 {[%clk 0:04:33.9]} 10. Bh6 {[%clk 0:04:29.9]} 10... Bf8 {[%clk
0:04:16.6]} 11. Bxf8 {[%clk 0:04:21.7]} 11... Kxf8 {[%clk 0:04:15.4]} 12. O-O-O
{[%clk 0:04:13]} 12... Ke7 {[%clk 0:04:12]} 13. Qa3+ {[%clk 0:04:09.6]} 13...
Qd6 {[%clk 0:04:08.9]} 14. Qxd6+ {[%clk 0:04:00.2]} 14... Kxd6 {[%clk
0:04:07.1]} 15. c4 {[%clk 0:03:57.7]} 15... Nd7 {[%clk 0:04:04.1]} 16. b4 {[%clk
0:03:56.1]} 16... Rhg8 {[%clk 0:03:55.4]} 17. g3 {[%clk 0:03:52.6]} 17... Ke7
{[%clk 0:03:51.6]} 18. Rhe1 {[%clk 0:03:44.8]} 18... Nb6 {[%clk 0:03:46.6]} 19.
c5 {[%clk 0:03:31.7]} 19... Nd5 {[%clk 0:03:45.2]} 20. a3 {[%clk 0:03:25]} 20...
a5 {[%clk 0:03:43.6]} 21. bxa5 {[%clk 0:03:20.2]} 21... Rxa5 {[%clk 0:03:39.5]}
22. Rd3 {[%clk 0:03:15.8]} 22... Rga8 {[%clk 0:03:30.6]} 23. Kd2 {[%clk
0:03:03.5]} 23... Rxa3 {[%clk 0:03:25]} 24. Rxa3 {[%clk 0:03:01.3]} 24... Rxa3
{[%clk 0:03:23.8]} 25. Ke2 {[%clk 0:02:37.7]} 25... Nc3+ {[%clk 0:03:13.8]} 26.
Kf1 {[%clk 0:02:36.6]} 26... Nb5 {[%clk 0:03:11.3]} 27. Kg2 {[%clk 0:02:32.2]}
27... Rd3 {[%clk 0:02:59.9]} 28. Re4 {[%clk 0:02:23.6]} 28... f5 {[%clk
0:02:43.1]} 29. Rh4 {[%clk 0:02:21]} 29... h5 {[%clk 0:02:36.9]} 30. h3 {[%clk
0:02:07]} 30... Kf6 {[%clk 0:02:29.7]} 31. Rxh5 {[%clk 0:01:57.4]} 31... Nxd4
{[%clk 0:02:25.2]} 32. Nxd4 {[%clk 0:01:54.6]} 32... Rxd4 {[%clk 0:02:24]} 33.
Rh6+ {[%clk 0:01:53.4]} 33... Kg7 {[%clk 0:02:21.2]} 34. Rh4 {[%clk 0:01:48]}
34... Rxh4 {[%clk 0:02:16]} 35. gxh4 {[%clk 0:01:46.1]} 35... Kh6 {[%clk
0:02:14.9]} 36. Kf3 {[%clk 0:01:44.3]} 36... e5 {[%clk 0:02:14.1]} 37. Ke3
{[%clk 0:01:40]} 37... Kh5 {[%clk 0:02:12.1]} 38. f3 {[%clk 0:01:37.4]} 38...
Kxh4 {[%clk 0:02:10.8]} 39. f4 {[%clk 0:01:34.1]} 39... e4 {[%clk 0:02:09.2]}
0-1

[Event "Live Chess"]
[Site "Chess.com"]
[Date "2023.05.20"]
[Round "-"]
[White "jennybobby44"]
[Black "chessfiction"]
[Result "0-1"]
[WhiteElo "1875"]
[BlackElo "2404"]
[TimeControl "300"]
[EndTime "11:53:29 PDT"]
[Termination "chessfiction won by resignation"]

1. Nf3 {[%clk 0:04:57.6]} 1... Nc6 {[%clk 0:04:57.7]} 2. d4 {[%clk 0:04:55.2]}
2... d5 {[%clk 0:04:56.3]} 3. g3 {[%clk 0:04:54.4]} 3... Bg4 {[%clk 0:04:55.3]}
4. Bg2 {[%clk 0:04:53.6]} 4... Qd7 {[%clk 0:04:53.5]} 5. Ne5 {[%clk 0:04:45.1]}
5... Nxe5 {[%clk 0:04:49.4]} 6. dxe5 {[%clk 0:04:45]} 6... O-O-O {[%clk
0:04:47.9]} 7. c3 {[%clk 0:04:37.3]} 7... f6 {[%clk 0:04:41.3]} 8. exf6 {[%clk
0:04:35.4]} 8... exf6 {[%clk 0:04:39.8]} 9. O-O {[%clk 0:04:24.6]} 9... Bc5
{[%clk 0:04:38.5]} 10. b4 {[%clk 0:04:21.6]} 10... Bb6 {[%clk 0:04:36]} 11. a4
{[%clk 0:04:20.9]} 11... a5 {[%clk 0:04:34.3]} 12. bxa5 {[%clk 0:04:20]} 12...
Bxa5 {[%clk 0:04:32.1]} 13. Bd2 {[%clk 0:04:15]} 13... h5 {[%clk 0:04:31]} 14.
f3 {[%clk 0:04:08.2]} 14... Bb6+ {[%clk 0:04:26.2]} 15. Kh1 {[%clk 0:04:03]}
15... h4 {[%clk 0:04:22]} 16. fxg4 {[%clk 0:03:51.3]} 16... hxg3 {[%clk
0:04:20.8]} 17. h3 {[%clk 0:03:46.6]} 17... Qxg4 {[%clk 0:04:19]} 18. e3 {[%clk
0:02:52.4]} 18... Rxh3+ {[%clk 0:04:14.6]} 19. Kg1 {[%clk 0:02:51.5]} 19... Qxd1
{[%clk 0:03:58]} 20. Rxd1 {[%clk 0:02:50]} 20... Rh2 {[%clk 0:03:57.9]} 21. a5
{[%clk 0:02:46.5]} 21... Bc5 {[%clk 0:03:55.4]} 22. Na3 {[%clk 0:02:43.6]} 22...
Re8 {[%clk 0:03:51.7]} 23. Re1 {[%clk 0:02:41.6]} 23... Nh6 {[%clk 0:03:48.7]}
24. Nb5 {[%clk 0:02:39.2]} 24... Ng4 {[%clk 0:03:47.6]} 25. Nd4 {[%clk
0:02:37.8]} 25... Nf2 {[%clk 0:03:45.8]} 26. a6 {[%clk 0:02:29.8]} 26... bxa6
{[%clk 0:03:44]} 27. Rxa6 {[%clk 0:02:28.7]} 27... Kd7 {[%clk 0:03:41.6]} 28.
Ra5 {[%clk 0:02:20.9]} 28... Nd3 {[%clk 0:03:33.8]} 29. Rf1 {[%clk 0:01:58.2]}
29... Reh8 {[%clk 0:03:27.6]} 30. Bxd5 {[%clk 0:01:51.5]} 30... Rxd2 {[%clk
0:03:23.9]} 31. Be4 {[%clk 0:01:33.7]} 31... Bxd4 {[%clk 0:03:20.8]} 32. cxd4
{[%clk 0:01:32.6]} 32... Nf2 {[%clk 0:03:15.6]} 33. Rc1 {[%clk 0:01:13.3]} 33...
Nxe4 {[%clk 0:03:10.3]} 0-1

[Event "Live Chess"]
[Site "Chess.com"]
[Date "2023.05.20"]
[Round "-"]
[White "LiamBellwood"]
[Black "LL220284LL"]
[Result "0-1"]
[WhiteElo "2089"]
[BlackElo "2399"]
[TimeControl "300"]
[EndTime "11:53:30 PDT"]
[Termination "LL220284LL won by resignation"]

1. d4 {[%clk 0:04:59.4]} 1... Nf6 {[%clk 0:04:57.6]} 2. Nc3 {[%clk 0:04:58.9]}
2... d5 {[%clk 0:04:55.8]} 3. Bf4 {[%clk 0:04:58.6]} 3... c5 {[%clk 0:04:54.4]}
4. e4 {[%clk 0:04:57.7]} 4... Nxe4 {[%clk 0:04:52.9]} 5. Nxe4 {[%clk 0:04:56.8]}
5... dxe4 {[%clk 0:04:50.4]} 6. dxc5 {[%clk 0:04:56.7]} 6... Qa5+ {[%clk
0:04:49.7]} 7. c3 {[%clk 0:04:56.2]} 7... Qxc5 {[%clk 0:04:49.4]} 8. Qa4+ {[%clk
0:04:56]} 8... Nc6 {[%clk 0:04:48.6]} 9. Qxe4 {[%clk 0:04:55.9]} 9... Bf5 {[%clk
0:04:48.1]} 10. Qe3 {[%clk 0:04:52.2]} 10... e5 {[%clk 0:04:41.6]} 11. Qxc5
{[%clk 0:04:37]} 11... Bxc5 {[%clk 0:04:39.5]} 12. Bg3 {[%clk 0:04:36.9]} 12...
O-O-O {[%clk 0:04:35.4]} 13. Bb5 {[%clk 0:04:35.5]} 13... f6 {[%clk 0:04:29.1]}
14. Nf3 {[%clk 0:04:30.2]} 14... Ne7 {[%clk 0:04:25.2]} 15. O-O {[%clk
0:04:25.1]} 15... a6 {[%clk 0:04:21.4]} 16. Bc4 {[%clk 0:04:20]} 16... b5 {[%clk
0:04:19.1]} 17. Bb3 {[%clk 0:04:18.7]} 17... Bd3 {[%clk 0:04:17.4]} 18. Rfe1
{[%clk 0:04:10.7]} 18... Nf5 {[%clk 0:04:16.3]} 19. Rad1 {[%clk 0:03:40]} 19...
Kb7 {[%clk 0:03:49.8]} 20. Bxe5 {[%clk 0:02:42]} 20... fxe5 {[%clk 0:03:45.1]}
21. Nxe5 {[%clk 0:02:41.9]} 21... Bc4 {[%clk 0:03:36.1]} 22. Bxc4 {[%clk
0:02:35.9]} 22... bxc4 {[%clk 0:03:32.3]} 23. Nxc4 {[%clk 0:02:35.8]} 23... Rxd1
{[%clk 0:03:27.4]} 24. Rxd1 {[%clk 0:02:35.7]} 24... Re8 {[%clk 0:03:26.1]} 25.
b4 {[%clk 0:02:30.2]} 25... Re4 {[%clk 0:03:05.4]} 26. Na5+ {[%clk 0:02:10.1]}
26... Kb6 {[%clk 0:03:03.7]} 27. Nb3 {[%clk 0:02:07.4]} 27... Be7 {[%clk
0:02:58.2]} 28. Kf1 {[%clk 0:02:01.2]} 28... Bf6 {[%clk 0:02:56.2]} 29. Rd3
{[%clk 0:01:34.2]} 29... Rc4 {[%clk 0:02:50.1]} 30. Rd5 {[%clk 0:01:23.5]} 30...
Ne7 {[%clk 0:02:38.1]} 31. Rd6+ {[%clk 0:01:22.8]} 31... Kc7 {[%clk 0:02:34.8]}
32. Rxa6 {[%clk 0:01:18.3]} 32... Rxc3 {[%clk 0:02:33.8]} 33. Nc5 {[%clk
0:01:13.2]} 33... Nd5 {[%clk 0:02:27.1]} 34. Ra7+ {[%clk 0:01:05.3]} 34... Kb8
{[%clk 0:02:23.4]} 35. Rb7+ {[%clk 0:01:04]} 35... Kc8 {[%clk 0:02:22.7]} 36.
Rb5 {[%clk 0:00:57.3]} 36... Rc1+ {[%clk 0:02:19]} 0-1

[Event "Live Chess"]
[Site "Chess.com"]
[Date "2023.05.20"]
[Round "-"]
[White "mikkyb4"]
[Black "mattihelenius2"]
[Result "1-0"]
[WhiteElo "1010"]
[BlackElo "489"]
[TimeControl "300"]
[EndTime "11:53:43 PDT"]
[Termination "mikkyb4 won by resignation"]

1. e4 {[%clk 0:04:56.1]} 1... e5 {[%clk 0:04:58.9]} 2. Nc3 {[%clk 0:04:54.9]}
2... Nf6 {[%clk 0:04:52.6]} 3. f4 {[%clk 0:04:53.6]} 3... exf4 {[%clk
0:04:48.8]} 4. e5 {[%clk 0:04:51.8]} 4... d6 {[%clk 0:04:19.6]} 5. exf6 {[%clk
0:04:46.5]} 5... Qxf6 {[%clk 0:04:11.9]} 6. Nf3 {[%clk 0:04:39.3]} 6... Qe7+
{[%clk 0:04:09.2]} 7. Be2 {[%clk 0:04:36]} 7... Nc6 {[%clk 0:04:07.2]} 8. Nd5
{[%clk 0:04:34.6]} 8... Qe6 {[%clk 0:04:04]} 9. Nxc7+ {[%clk 0:04:33.1]} 9...
Kd7 {[%clk 0:04:00]} 10. Nxe6 {[%clk 0:04:31.8]} 10... fxe6 {[%clk 0:03:57.2]}
11. O-O {[%clk 0:04:25.6]} 11... e5 {[%clk 0:03:54.1]} 12. d4 {[%clk 0:04:24.3]}
12... Nxd4 {[%clk 0:03:53]} 13. Nxd4 {[%clk 0:04:22.4]} 1-0

[Event "Live Chess"]
[Site "Chess.com"]
[Date "2023.05.20"]
[Round "-"]
[White "CheckThis4"]
[Black "mliszewski"]
[Result "1-0"]
[WhiteElo "2553"]
[BlackElo "1885"]
[TimeControl "300"]
[EndTime "11:53:46 PDT"]
[Termination "CheckThis4 won by resignation"]

1. d4 {[%clk 0:04:57.5]} 1... d5 {[%clk 0:04:58.7]} 2. Bg5 {[%clk 0:04:54.7]}
2... Nf6 {[%clk 0:04:56.5]} 3. e3 {[%clk 0:04:49.8]} 3... Bf5 {[%clk 0:04:50.1]}
4. Bxf6 {[%clk 0:04:46.9]} 4... exf6 {[%clk 0:04:48.7]} 5. Nf3 {[%clk
0:04:44.2]} 5... Bd6 {[%clk 0:04:46.6]} 6. c4 {[%clk 0:04:42.1]} 6... dxc4
{[%clk 0:04:43.7]} 7. Bxc4 {[%clk 0:04:39.8]} 7... O-O {[%clk 0:04:43.3]} 8. O-O
{[%clk 0:04:37.7]} 8... Re8 {[%clk 0:04:42.1]} 9. Nbd2 {[%clk 0:04:27]} 9... Nd7
{[%clk 0:04:41.5]} 10. Rc1 {[%clk 0:04:25]} 10... Nf8 {[%clk 0:04:40.3]} 11. Re1
{[%clk 0:04:21.7]} 11... c6 {[%clk 0:04:37.4]} 12. Qb3 {[%clk 0:04:14.8]} 12...
Be6 {[%clk 0:04:35]} 13. Qxb7 {[%clk 0:04:09.8]} 13... Rb8 {[%clk 0:04:29.7]}
14. Qxc6 {[%clk 0:04:03.7]} 14... Rxb2 {[%clk 0:04:28.5]} 15. Bxe6 {[%clk
0:03:31.7]} 15... Rxe6 {[%clk 0:04:22.8]} 16. Qa4 {[%clk 0:03:30.3]} 16... Qb8
{[%clk 0:04:17.5]} 17. Nc4 {[%clk 0:03:24.4]} 17... Rb4 {[%clk 0:04:07.9]} 18.
Qd1 {[%clk 0:03:17.9]} 18... Bc7 {[%clk 0:03:56.8]} 19. d5 {[%clk 0:03:12.9]}
19... Re4 {[%clk 0:03:51.2]} 20. Qd3 {[%clk 0:02:57.3]} 20... f5 {[%clk
0:03:38.1]} 21. d6 {[%clk 0:02:51.6]} 21... Bb6 {[%clk 0:03:22.9]} 22. Nfd2
{[%clk 0:02:47.7]} 22... Rh4 {[%clk 0:03:04.1]} 23. g3 {[%clk 0:02:43.7]} 23...
Rh5 {[%clk 0:03:00.4]} 24. Nxb6 {[%clk 0:02:35.3]} 24... Rxb6 {[%clk 0:02:52.7]}
25. Nc4 {[%clk 0:02:23.8]} 25... Rc6 {[%clk 0:02:43.2]} 26. d7 {[%clk
0:02:10.2]} 26... Qd8 {[%clk 0:02:37.4]} 27. Ne5 {[%clk 0:02:03.7]} 27... Rch6
{[%clk 0:02:29.1]} 28. Rc8 {[%clk 0:01:47]} 28... Rxh2 {[%clk 0:02:21.6]} 29.
Rxd8 {[%clk 0:01:44.4]} 29... Rh1+ {[%clk 0:02:20.2]} 30. Kg2 {[%clk 0:01:43.7]}
30... R6h2+ {[%clk 0:02:18.4]} 31. Kf3 {[%clk 0:01:42.9]} 31... g5 {[%clk
0:02:14.1]} 32. Rxf8+ {[%clk 0:01:40.7]} 32... Kxf8 {[%clk 0:02:12.5]} 33. d8=Q+
{[%clk 0:01:39.5]} 33... Kg7 {[%clk 0:02:12.4]} 34. Qxg5+ {[%clk 0:01:37.9]} 1-0

[Event "Live Chess"]
[Site "Chess.com"]
[Date "2023.05.20"]
[Round "-"]
[White "CeladonFish"]
[Black "Andysav3"]
[Result "0-1"]
[WhiteElo "1092"]
[BlackElo "1696"]
[TimeControl "300"]
[EndTime "11:53:51 PDT"]
[Termination "Andysav3 won by resignation"]

1. d4 {[%clk 0:04:59.5]} 1... Nf6 {[%clk 0:04:57.3]} 2. c4 {[%clk 0:04:58.5]}
2... b5 {[%clk 0:04:53.9]} 3. cxb5 {[%clk 0:04:56.6]} 3... a6 {[%clk 0:04:50.5]}
4. bxa6 {[%clk 0:04:56]} 4... Bxa6 {[%clk 0:04:48.8]} 5. Nc3 {[%clk 0:04:54.1]}
5... e6 {[%clk 0:04:40.7]} 6. g3 {[%clk 0:04:49.7]} 6... Bb7 {[%clk 0:04:16.5]}
7. f3 {[%clk 0:04:36]} 7... Bb4 {[%clk 0:04:02.4]} 8. Qb3 {[%clk 0:04:34.7]}
8... Qe7 {[%clk 0:03:31.7]} 9. a3 {[%clk 0:04:31.6]} 9... Bd5 {[%clk 0:03:28.7]}
10. Qxb4 {[%clk 0:04:26.3]} 10... Qxb4 {[%clk 0:03:26.8]} 11. axb4 {[%clk
0:04:25.5]} 11... Rxa1 {[%clk 0:03:24.5]} 12. Kd2 {[%clk 0:04:16.1]} 12... O-O
{[%clk 0:03:14]} 13. e4 {[%clk 0:04:08.3]} 13... Bb3 {[%clk 0:03:08.9]} 14. e5
{[%clk 0:04:05.2]} 14... Nd5 {[%clk 0:03:02.9]} 15. Nxd5 {[%clk 0:04:02]} 15...
Bxd5 {[%clk 0:03:01.9]} 16. Ne2 {[%clk 0:03:55.2]} 16... Bxf3 {[%clk 0:02:54.6]}
17. Nc3 {[%clk 0:03:53]} 17... Bxh1 {[%clk 0:02:52]} 0-1